bitfinex-derivatives/quotes_SOLF0:USTF0_20250202
["timestamp","ask_amount","ask_price","bid_price","bid_amount"]
[1738529313724,5.8735,202.41,202.26,4.9453]
[1738529313725,4.9439,202.32,202.26,4.9453]
[1738529313914,4.9439,202.32,202.31,0.03780277]
[1738529315825,0.03178728,202.35,202.31,0.03780277]
[1738529316526,4.9438,202.32,202.31,0.03780277]
[1738529317223,0.03178728,202.35,202.21,40.73896258]
[1738529317424,4.2,202.34,202.17,40.73896258]
[1738529317728,1.6089,202.33,202.17,40.73896258]
[1738529317926,3.2902,202.33,202.17,40.73896258]
[1738529318227,4.9456,202.25,202.19,4.947]
[1738529318630,4.9458,202.24,202.23,0.03249784]
[1738529318830,0.03303459,202.27,202.23,0.03249784]
[1738529320827,4.9458,202.24,202.23,0.03249784]
[1738529321933,1.595,202.26,202.13,138.45896258]
[1738529322131,4.9475,202.18,202.13,97.72]
[1738529322327,1.595,202.26,202.03,1.0396]
[1738529322632,40.73896258,202.19,201.99,40.73896258]
[1738529322827,3.1947,202.18,201.99,40.73896258]
[1738529323129,4.9497,202.08,202.07,0.03640945]
[1738529323330,0.03680781,202.11,202.07,0.03640945]
[1738529323727,0.03680781,202.11,202.07,40.77537203]
[1738529323933,1.6011,202.25,202.07,40.77537203]
[1738529324130,3.2246,202.25,202.07,40.77537203]
[1738529324333,3.2246,202.25,202.11,40.73896258]
[1738529324933,3.2246,202.25,202.07,40.73896258]
[1738529325234,0.03700736,202.2,202.16,0.03697969]
[1738529325735,4.9474,202.18,202.16,0.03697969]
[1738529326730,0.03700736,202.2,202.16,0.03697969]
[1738529327328,4.9471,202.19,202.16,0.03697969]
[1738529327630,0.03700736,202.2,202.16,0.03697969]
[1738529327936,4.9475,202.17,202.16,0.03697969]
[1738529328137,0.03700736,202.2,202.16,0.03697969]
[1738529329040,4.9475,202.17,202.16,0.03697969]
[1738529329638,0.03700736,202.2,202.16,0.03697969]
[1738529329639,4.9473,202.18,202.16,0.03697969]
[1738529329839,0.03700736,202.2,202.16,0.03697969]
[1738529332445,0.03700736,202.2,202.18,4.9471]
[1738529332645,1.6181,202.32,202.16,0.03697969]
[1738529332847,1.6181,202.32,202.14,40.73896258]
[1738529333050,4.9458,202.24,202.18,4.9471]
[1738529333343,1.6181,202.32,202.14,40.73896258]
[1738529333848,0.03551982,202.25,202.21,0.03400637]
[1738529334243,4.9463,202.22,202.21,0.03400637]
[1738529335349,0.03551982,202.25,202.06,40.73896258]
[1738529335545,1.6469,202.21,202.08,4.9495]
[1738529335748,4.9482,202.15,202.06,40.73896258]
[1738529335945,1.6469,202.21,202.06,40.73896258]
[1738529336348,4.9476,202.17,202.09,4.9494]
[1738529336548,0.03610511,202.16,202.11,0.03457441]
[1738529337048,4.98410511,202.16,202.11,0.03457441]
[1738529337247,0.03610511,202.16,202.11,0.03457441]
[1738529337643,4.9487,202.12,202.11,0.03457441]
[1738529338647,0.03610511,202.16,202.11,0.03457441]
[1738529339857,1.6472,202.24,202.11,0.03457441]
[1738529340053,1.6472,202.24,202.1,40.73896258]
[1738529340450,1.6096,202.28,202.14,40.73896258]
[1738529340850,0.03562241,202.23,202.19,0.03713542]
[1738529341052,4.9467,202.21,202.19,0.03713542]
[1738529341259,0.03562241,202.23,202.19,0.03713542]
[1738529342663,1.6226,202.35,202.22,40.73896258]
[1738529342855,23.29757011,202.4,202.26,40.73896258]
[1738529343254,23.29757011,202.4,202.22,40.73896258]
[1738529343655,0.03366049,202.33,202.3,40.73896258]
[1738529343855,0.03366049,202.33,202.29,0.03287695]
[1738529344259,4.9443,202.3,202.29,0.03287695]
[1738529344759,0.03366049,202.33,202.29,0.03287695]
[1738529345959,0.03366049,202.33,202.31,4.944]
[1738529346266,19.95807011,202.5,202.29,0.03287695]
[1738529346267,24.15807011,202.5,202.3,40.73896258]
[1738529346565,4.9408,202.45,202.37,4.9426]
[1738529346762,19.95807011,202.5,202.34,40.73896258]
[1738529347058,19.95807011,202.5,202.38,40.73896258]
[1738529347260,60.69703269,202.5,202.3,40.73896258]
[1738529347567,4.9417,202.41,202.4,0.03176302]
[1738529347764,0.03344748,202.44,202.4,0.03176302]
[1738529349456,4.9417,202.41,202.4,0.03176302]
[1738529350258,4.9417,202.41,202.22,97.92]
[1738529350259,0.03344748,202.44,202.26,40.73896258]
[1738529350463,4.9438,202.33,202.26,40.73896258]
[1738529350663,4.2,202.43,202.26,40.73896258]
[1738529350865,43.96036258,202.42,202.22,138.65896258]
[1738529351066,40.73896258,202.38,202.22,97.92]
[1738529351467,4.9459,202.24,202.17,80.66904983]
[1738529351658,0.03283943,202.32,202.17,80.66904983]
[1738529351858,40.73896258,202.34,202.28,0.03582565]
[1738529352060,0.03157169,202.27,202.14,40.73896258]
[1738529352259,40.73896258,202.34,202.14,40.73896258]
[1738529352768,4.9466,202.21,202.14,4.9482]
[1738529353170,4.9471,202.19,202.15,0.03553668]
[1738529353367,0.0364217,202.2,202.15,0.03553668]
[1738529353566,0.0364217,202.2,202.06,138.63896258]
[1738529353767,4.9478,202.16,202.15,0.03194024]
[1738529354861,0.031662,202.18,202.06,97.9]
[1738529355066,1.581,202.17,202.06,97.9]
[1738529355370,4.9483,202.14,202.06,97.9]
[1738529355565,5.781,202.17,202.06,97.9]
[1738529355775,1.6773,202.16,202.06,97.9]
[1738529356073,0.03230286,202.14,202.09,0.03195615]
[1738529356371,40.73896258,202.14,201.92,40.73896258]
[1738529356573,4.9509,202.04,201.95,4.9528]
[1738529356866,40.73896258,202.14,201.92,40.73896258]
[1738529357266,1.6773,202.16,201.96,40.73896258]
[1738529357472,1.6773,202.16,202.04,40.73896258]
[1738529357668,4.2,202.22,202.04,40.73896258]
[1738529358064,4.9468,202.21,202.12,4.9487]
[1738529358274,40.73896258,202.26,202.08,40.73896258]
[1738529358772,0.03267272,202.19,202.15,0.03369326]
[1738529360167,0.03267272,202.19,202.17,4.9474]
[1738529360472,19.95807011,202.26,202.15,0.03369326]
[1738529360473,19.95807011,202.26,202.16,40.73896258]
[1738529360673,19.95807011,202.26,202.2,4.9467]
[1738529360870,4.9452,202.27,202.2,4.9467]
[1738529361371,40.73896258,202.38,202.16,40.73896258]
[1738529361569,19.95807011,202.41,202.24,40.73896258]
[1738529361774,19.95807011,202.41,202.18,40.73896258]
[1738529361775,40.73896258,202.38,202.18,40.73896258]
[1738529362710,19.95807011,202.41,202.33,40.73896258]
[1738529362877,53.15939195,202.42,202.37,40.73896258]
[1738529363068,1.522e-05,202.39,202.37,40.73896258]
[1738529363274,1.522e-05,202.39,202.37,40.77163318]
[1738529363466,19.34437011,202.5,202.37,40.77163318]
[1738529363676,24.28397011,202.5,202.41,4.9415]
[1738529363870,24.28397011,202.5,202.37,40.73896258]
[1738529363871,19.34437011,202.5,202.37,40.73896258]
[1738529364271,0.03292057,202.46,202.41,0.03550741]
[1738529365270,2.057e-05,202.46,202.41,40.77446999]
[1738529365472,1.057e-05,202.5,202.45,40.73896258]
[1738529365972,1.8419,202.62,202.54,4.9383]
[1738529366173,1.8419,202.62,202.53,40.73896258]
[1738529366367,1.8419,202.62,202.49,40.73896258]
[1738529366871,0.03131549,202.58,202.53,0.03360445]
[1738529367074,0.03131549,202.58,202.53,40.77256703]
[1738529368080,0.03131549,202.58,202.53,0.03360445]
[1738529368474,4.9383,202.55,202.53,0.03360445]
[1738529369679,4.94,202.48,202.41,40.73896258]
[1738529370279,4.9394,202.51,202.41,40.73896258]
[1738529370473,1.8258,202.57,202.41,40.73896258]
[1738529370979,4.9403,202.47,202.41,40.73896258]
[1738529371279,1.7914,202.56,202.42,0.03347698]
[1738529371478,0.03717258,202.46,202.41,40.73896258]
[1738529371777,1.7914,202.56,202.47,0.03436224]
[1738529371980,1.7914,202.56,202.41,40.73896258]
[1738529372178,0.03778591,202.54,202.49,0.03426379]
[1738529372375,4.9412,202.43,202.37,40.73896258]
[1738529372579,1.7914,202.56,202.37,40.73896258]
[1738529373180,1.7914,202.56,202.41,40.73896258]
[1738529373575,4.9395,202.5,202.46,0.03657359]
[1738529373782,0.03472482,202.51,202.46,0.03657359]
[1738529375777,4.9402,202.47,202.46,0.03657359]
[1738529376484,4.9402,202.47,202.3,0.6782]
[1738529376485,0.03472482,202.51,202.33,40.73896258]
[1738529376678,1.7315,202.46,202.33,40.73896258]
[1738529377075,4.9421,202.4,202.33,45.68246258]
[1738529377275,1.7315,202.46,202.33,40.73896258]
[1738529377497,1.7914,202.56,202.45,4.9407]
[1738529377682,1.7914,202.56,202.41,40.73896258]
[1738529377884,0.03120666,202.53,202.41,40.73896258]
[1738529378085,0.03120666,202.53,202.46,0.0327882]
[1738529379681,0.03120666,202.53,202.49,4.9397]
[1738529379878,0.03120666,202.53,202.49,40.73896258]
[1738529380880,0.03120666,202.53,202.5,4.9394]
[1738529381185,0.03120666,202.53,202.49,40.73896258]
[1738529381777,3.5288,202.68,202.49,40.73896258]
[1738529381987,4.9354,202.67,202.59,4.937]
[1738529382283,3.5288,202.68,202.58,40.73896258]
[1738529382882,0.03203256,202.65,202.61,0.03562833]
[1738529383677,0.03203256,202.65,202.63,4.9362]
[1738529383990,40.73896258,202.8,202.62,40.73896258]
[1738529383991,3.6455,202.8,202.62,40.73896258]
[1738529384192,4.9331,202.77,202.7,4.9345]
[1738529384380,5.4456,202.8,202.67,40.73896258]
[1738529385186,0.03283603,202.76,202.71,0.03765377]
[1738529386181,4.9354,202.67,202.6,4.9369]
[1738529386380,40.77179861,202.76,202.6,4.9369]
[1738529386591,40.73896258,202.76,202.55,40.73896258]
[1738529386890,4.936,202.64,202.55,40.73896258]
[1738529387486,0.03582852,202.62,202.57,0.03736469]
[1738529387687,0.03582852,202.62,202.6,4.937]
[1738529387887,0.03582852,202.62,202.57,0.03736469]
[1738529388191,0.03582852,202.62,202.57,4.97486469]
[1738529388385,0.03582852,202.62,202.57,0.03736469]
[1738529388886,0.03582852,202.62,202.58,4.9375]
[1738529389486,0.03582852,202.62,202.58,4.9374]
[1738529390103,0.03582852,202.62,202.57,0.03736469]
[1738529390287,5.4456,202.8,202.59,40.73896258]
[1738529390484,5.4456,202.8,202.61,40.73896258]
[1738529390485,46.18456258,202.8,202.61,40.73896258]
[1738529390882,40.73896258,202.76,202.51,138.53896258]
[1738529391593,0.03453727,202.66,202.61,0.03383379]
[1738529391791,4.9365,202.62,202.51,45.67806258]
[1738529392092,4.18,202.7,202.51,45.67806258]
[1738529392093,3.8916,202.65,202.51,4.9391]
[1738529392488,3.8916,202.65,202.47,40.73896258]
[1738529392688,4.9377,202.58,202.52,4.9389]
[1738529392891,3.8916,202.65,202.52,4.9389]
[1738529393190,4.97332799,202.57,202.53,0.0338924]
[1738529393491,0.03552799,202.57,202.53,0.0338924]
[1738529393786,4.9385,202.54,202.53,0.0338924]
[1738529395404,0.03552799,202.57,202.43,40.73896258]
[1738529395692,4.18,202.57,202.4,102.7018]
[1738529395886,4.18,202.57,202.4,97.76]
[1738529396293,4.939,202.52,202.4,97.76]
[1738529396592,1.96109761,202.51,202.46,0.0326364]
[1738529396991,4.9399,202.49,202.46,0.0326364]
[1738529397192,0.03729761,202.51,202.47,40.73896258]
[1738529397395,0.03729761,202.51,202.5,4.9395]
[1738529397693,6.1004,202.65,202.47,40.73896258]
[1738529397893,6.1004,202.65,202.51,40.73896258]
[1738529398899,0.03627231,202.6,202.56,0.03393112]
[1738529399087,6.1004,202.65,202.47,40.73896258]
[1738529399291,0.03749083,202.56,202.51,0.03424184]
[1738529399494,0.03749083,202.56,202.47,40.73896258]
[1738529399694,0.03749083,202.56,202.51,0.03728612]
[1738529399895,4.9385,202.54,202.51,0.03728612]
[1738529400198,0.03749083,202.56,202.4,97.76]
[1738529400398,1.8485,202.55,202.4,102.7018]
[1738529400692,9.8718,202.65,202.5,40.73896258]
[1738529400894,3.7087,202.69,202.54,40.73896258]
[1738529401592,0.03241684,202.64,202.59,0.03266733]
[1738529402814,0.03241684,202.64,202.44,1.1748]
[1738529402990,40.73896258,202.62,202.43,2.0069]
[1738529403191,4.9388,202.53,202.42,4.9414]
[1738529403398,40.73896258,202.58,202.38,40.73896258]
[1738529403399,44.91896258,202.58,202.38,40.73896258]
[1738529403698,2.0176,202.57,202.38,40.73896258]
[1738529403899,0.0324112,202.51,202.47,0.03596586]
[1738529404394,0.0324112,202.51,202.35,4.9429]
[1738529404591,0.0324112,202.51,202.34,40.73896258]
[1738529404797,40.73896258,202.54,202.34,40.73896258]
[1738529405702,0.03276898,202.46,202.42,0.03244098]
[1738529406301,0.03276898,202.46,202.35,4.9431]
[1738529406601,0.03276898,202.46,202.34,40.73896258]
[1738529406800,4.9418,202.41,202.34,40.73896258]
[1738529406993,4.9418,202.41,202.33,4.9434]
[1738529406994,40.73896258,202.5,202.3,41.20326258]
[1738529407200,40.73896258,202.54,202.34,40.73896258]
[1738529407398,4.9409,202.44,202.37,4.9425]
[1738529407699,0.03375512,202.42,202.38,40.77265957]
[1738529407897,0.03375512,202.42,202.38,40.73896258]
[1738529408125,1.9056,202.52,202.38,40.73896258]
[1738529408303,4.32e-05,202.42,202.38,0.03278744]
[1738529408502,4.32e-05,202.42,202.3,0.4643]
[1738529408503,2.0176,202.57,202.39,1.9815]
[1738529408702,2.0176,202.57,202.44,40.73896258]
[1738529408903,2.0176,202.57,202.4,40.73896258]
[1738529409100,4.9402,202.47,202.39,1.9815]
[1738529409303,2.0176,202.57,202.3,0.4643]
[1738529409504,0.03553886,202.45,202.41,0.03641839]
[1738529409905,40.73896258,202.54,202.3,2.5065]
[1738529410095,0.03348596,202.45,202.41,0.03232344]
[1738529410301,0.03348596,202.45,202.33,40.73896258]
[1738529410302,0.88624736,202.53,202.33,40.73896258]
[1738529410501,0.88624736,202.53,202.41,0.03132397]
[1738529410703,0.03740157,202.45,202.41,0.03132397]
[1738529411005,0.88658692,202.53,202.33,40.73896258]
[1738529411206,0.03494665,202.45,202.41,0.03750769]
[1738529411505,1.9387,202.52,202.41,40.73896258]
[1738529411702,0.03233811,202.45,202.41,40.77438578]
[1738529412104,3.811e-05,202.45,202.41,40.77438578]
[1738529412609,4.18003811,202.45,202.29,40.73896258]
[1738529412910,4.18,202.45,202.29,40.73896258]
[1738529413607,4.18,202.48,202.29,40.73896258]
[1738529413909,2.804e-05,202.39,202.37,40.73896258]
[1738529414207,4.94,202.48,202.38,4.9424]
[1738529414507,4.94,202.48,202.37,40.73896258]
[1738529414508,6.1299,202.56,202.37,40.73896258]
[1738529414699,6.1299,202.56,202.41,4.9415]
[1738529414905,6.1299,202.56,202.37,40.73896258]
[1738529415102,0.03585444,202.51,202.46,0.03580001]
[1738529416006,0.03585444,202.51,202.46,4.97620001]
[1738529416611,0.03585444,202.51,202.46,0.03580001]
[1738529417207,0.03585444,202.51,202.5,4.9395]
[1738529418206,0.03585444,202.51,202.46,0.03580001]
[1738529420706,0.03585444,202.51,202.48,4.9399]
[1738529421011,0.03585444,202.51,202.46,0.03580001]
[1738529421314,4.9402,202.48,202.46,0.03580001]
[1738529421614,0.03585444,202.51,202.46,0.03580001]
[1738529421836,0.03585444,202.51,202.46,4.97620001]
[1738529422021,0.03585444,202.51,202.46,0.03580001]
[1738529422520,4.9395,202.5,202.46,0.03580001]
[1738529423217,4.9395,202.5,202.46,4.97620001]
[1738529423419,0.03585444,202.51,202.46,0.03580001]
[1738529423616,0.03585444,202.51,202.5,40.73896258]
[1738529423816,2.0218,202.63,202.5,40.73896258]
[1738529424218,2.0218,202.63,202.53,4.9386]
[1738529424519,4.9365,202.62,202.5,40.73896258]
[1738529424719,2.0218,202.63,202.5,40.73896258]
[1738529425121,4.9381,202.56,202.54,0.03599867]
[1738529425321,0.0356464,202.58,202.54,0.03599867]
[1738529425517,4.9382,202.55,202.54,0.03599867]
[1738529427025,0.0356464,202.58,202.54,0.03599867]
[1738529428421,0.0356464,202.58,202.57,4.9378]
[1738529429522,6.61311784,202.66,202.54,40.77496125]
[1738529429722,6.61311784,202.66,202.58,40.73896258]
[1738529429923,1.784e-05,202.66,202.62,40.73896258]
[1738529430128,53.15939195,202.68,202.67,4.9353]
[1738529430323,20.10105118,202.74,202.66,40.73896258]
[1738529430521,20.10105118,202.74,202.62,40.73896258]
[1738529430522,20.10105118,202.74,202.71,40.73896258]
[1738529430824,131.4426824,202.78,202.71,40.73896258]
[1738529431017,113.10590886,202.78,202.77,40.73896258]
[1738529431428,32.32910224,202.78,202.77,40.73896258]
[1738529431630,9.92950224,202.78,202.77,40.73896258]
[1738529432025,4.18,203.01,202.77,81.47792516]
[1738529432327,4.18,203.01,202.87,40.73896258]
[1738529432528,1.9152,203.04,202.87,40.73896258]
[1738529432925,0.03492569,202.9,202.87,40.73896258]
[1738529433125,4.9272,203.01,202.87,45.66926258]
[1738529433425,1.9152,203.04,202.91,40.73896258]
[1738529433731,0.03189707,202.96,202.91,40.73896258]
[1738529434120,0.03189707,202.96,202.95,0.03502646]
[1738529434825,3.964,203.05,202.95,0.03502646]
[1738529434826,0.7296522,203.05,202.95,0.03502646]
[1738529435134,40.73896258,203.11,202.95,38.64387082]
[1738529435621,40.73896258,203.28,203.02,201.45176164]
[1738529435827,40.73896258,203.22,203.03,40.73896258]
[1738529436128,4.95585766,203.12,203.07,0.03303198]
[1738529436329,0.03135766,203.12,203.07,0.03303198]
[1738529436570,40.73896258,203.28,203.04,1.9112]
[1738529436726,0.03533579,203.12,203.07,0.03792798]
[1738529437231,40.73896258,203.28,203.07,40.73896258]
[1738529437426,0.03549695,203.12,203.07,40.77437121]
[1738529437631,40.73896258,203.28,203.08,141.64634749]
[1738529437830,1.9259,203.27,203.08,141.64634749]
[1738529438027,40.73896258,203.24,203.08,141.64634749]
[1738529438232,4.9236,203.16,203.08,141.64634749]
[1738529438533,1.9259,203.27,203.08,141.64634749]
[1738529438733,40.73896258,203.24,203.08,141.64634749]
[1738529439040,0.03409953,203.14,203.1,5.992e-05]
[1738529439534,2.0033,203.15,203.08,141.64634749]
[1738529439535,2.0033,203.15,203.08,22.66011215]
[1738529439836,4.9251,203.09,203.08,1.215e-05]
[1738529440334,0.0348747,203.11,203.06,8.526e-05]
[1738529440528,4.9256,203.07,203.06,8.526e-05]
[1738529441225,0.0348747,203.11,203.06,8.526e-05]
[1738529441426,0.0348747,203.11,203.06,4.92578526]
[1738529441737,4.9249,203.1,203.06,8.526e-05]
[1738529441933,0.0348747,203.11,203.06,8.526e-05]
[1738529442133,4.9251,203.09,203.06,8.526e-05]
[1738529442636,0.0348747,203.11,203.06,8.526e-05]
[1738529443336,4.9254,203.08,203.06,8.526e-05]
[1738529443835,4.9252,203.09,203.06,8.526e-05]
[1738529444040,0.0348747,203.11,203.06,8.526e-05]
[1738529445046,4.9595747,203.11,203.06,8.526e-05]
[1738529446738,4.9256,203.07,203.06,8.526e-05]
[1738529448141,4.9253,203.09,203.06,8.526e-05]
[1738529448532,0.0348747,203.11,203.06,8.526e-05]
[1738529449233,4.9256,203.07,203.06,8.526e-05]
[1738529450359,4.9266,203.03,203.02,148.00403604]
[1738529450533,4.9266,203.03,203.02,112.69463604]
[1738529450737,4.9266,203.03,203.02,99.14443604]
[1738529450938,4.9295,202.91,202.89,2.0021]
[1738529451136,4.9295,202.91,202.83,40.73896258]
[1738529451137,40.73896258,202.99,202.79,40.73896258]
[1738529451343,40.73896258,203.06,202.78,6.3315]
[1738529451344,40.73896258,202.95,202.78,6.3315]
[1738529451540,0.03626099,202.91,202.87,0.03690319]
[1738529452141,4.9298,202.9,202.87,0.03690319]
[1738529452341,0.03626099,202.91,202.87,0.03690319]
[1738529453538,49.52095213,203.11,202.87,0.03690319]
[1738529453539,40.73896258,203.03,202.87,0.03690319]
[1738529453743,40.73896258,203.07,202.87,40.77586577]
[1738529453942,4.9272,203.01,202.87,40.73896258]
[1738529454243,40.73896258,203.07,202.87,40.73896258]
[1738529454563,388.16942467,202.9,202.87,40.73896258]
[1738529454746,377.73272467,202.9,202.87,40.73896258]
[1738529455340,369.28325072,202.9,202.87,40.73896258]
[1738529455647,0.03413163,202.91,202.87,40.73896258]
[1738529455844,94.95855019,202.98,202.9,40.73896258]
[1738529456041,81.82005019,202.98,202.97,45.66696258]
[1738529456246,74.27605019,202.98,202.97,45.66696258]
[1738529456444,36.07595019,202.98,202.97,45.66696258]
[1738529456847,2.3157,203.17,202.97,40.73896258]
[1738529457148,2.3157,203.17,203.07,40.73896258]
[1738529457448,2.3157,203.17,203.11,40.73896258]
[1738529457847,0.03340325,203.14,203.11,40.73896258]
[1738529459147,2.1149,203.24,203.11,40.73896258]
[1738529460143,2.1149,203.24,203.06,40.73896258]
[1738529460347,0.03559428,203.2,203.15,0.03453404]
[1738529460948,2.2561,203.25,203.15,0.03453404]
[1738529461149,2.2561,203.25,203.16,23.07510108]
[1738529461441,47.91626258,203.25,203.24,345.0471701]
[1738529461648,47.91626258,203.25,203.24,82.78129422]
[1738529462251,47.91626258,203.25,203.24,59.2270953]
[1738529462449,47.91626258,203.25,203.24,48.6447953]
[1738529462651,4.9212,203.25,203.24,48.6447953]
[1738529463044,4.9212,203.25,203.24,31.1024953]
[1738529463249,45.66016258,203.25,203.24,1.6799953]
[1738529463449,45.66016258,203.25,203.22,1.418e-05]
[1738529463450,4.9217,203.23,203.22,1.418e-05]
[1738529464053,40.73896258,203.25,202.98,40.73896258]
[1738529464253,40.73896258,203.16,202.98,40.73896258]
[1738529464453,4.18,203.15,202.98,40.73896258]
[1738529464859,4.18,203.15,202.94,40.73896258]
[1738529464860,40.73896258,203.12,202.94,40.73896258]
[1738529465154,0.03506108,203.09,203.04,0.03156478]
[1738529465553,4.9255,203.08,203.04,0.03156478]
[1738529465758,0.03506108,203.09,203.04,0.03156478]
[1738529467047,0.03506108,203.09,203.04,40.77052736]
[1738529467250,20.04011154,203.17,203.08,40.73896258]
[1738529468253,53.15130814,203.2,203.16,40.73896258]
[1738529468660,53.18533828,203.2,203.19,4.9227]
[1738529468861,79.72696221,203.23,203.16,40.73896258]
[1738529469157,79.72696221,203.23,203.16,40.77101776]
[1738529470060,0.03184111,203.22,203.16,24.28333159]
[1738529470353,4.5567,203.36,203.16,24.25127641]
[1738529470559,0.0351784,203.21,203.17,0.0319969]
[1738529470858,0.0351784,203.21,203.12,40.73896258]
[1738529470859,4.5567,203.36,203.12,40.73896258]
[1738529471049,4.5567,203.36,203.17,0.03422849]
[1738529471050,0.03673131,203.21,203.17,0.03422849]
[1738529471254,2.2361,203.35,203.16,40.73896258]
[1738529471455,4.9206,203.28,203.16,40.73896258]
[1738529471653,0.03732423,203.21,203.17,0.03683522]
[1738529471851,2.2361,203.35,203.16,40.73896258]
[1738529472056,0.03435614,203.21,203.17,0.03278207]
[1738529472363,2.2361,203.35,203.17,0.03257524]
[1738529472572,0.0357938,203.21,203.12,40.73896258]
[1738529472757,40.73896258,203.3,203.12,40.73896258]
[1738529472961,40.73896258,203.3,203.06,40.73896258]
[1738529473156,4.9233,203.17,203.07,4.9256]
[1738529473358,0.03336587,203.23,203.16,0.03650603]
[1738529473560,40.73896258,203.21,203.02,40.73896258]
[1738529474564,40.73896258,203.17,202.98,40.73896258]
[1738529474858,0.03299821,203.14,203.09,0.03473679]
[1738529475062,0.03299821,203.14,203.02,40.73896258]
[1738529475261,0.03299821,203.14,203.09,0.03706557]
[1738529475561,0.03299821,203.14,202.98,40.73896258]
[1738529475963,40.73896258,203.17,202.98,40.73896258]
[1738529476265,4.16,203.2,203.05,40.73896258]
[1738529476671,0.03641285,203.15,203.14,4.9238]
[1738529476855,2.2143,203.22,203.09,40.73896258]
[1738529477060,0.03488117,203.17,203.12,0.03709449]
[1738529479466,4.9241,203.13,203.12,0.03709449]
[1738529479766,4.19488117,203.17,202.99,2.2764]
[1738529479964,4.9249,203.1,203.04,4.9263]
[1738529480160,4.16,203.17,202.98,40.73896258]
[1738529480366,40.73896258,203.15,202.94,40.73896258]
[1738529480758,2.2353,203.14,202.99,40.73896258]
[1738529480963,0.03406833,203.07,203.02,0.03228892]
[1738529483262,0.03406833,203.07,203.03,40.73896258]
[1738529483666,4.9264,203.04,203.02,0.03228892]
[1738529483861,0.03406833,203.07,203.02,0.03228892]
[1738529484263,0.03406833,203.07,203.06,4.9258]
[1738529484462,2.1738,203.21,203.06,40.73896258]
[1738529484868,2.1738,203.21,203.05,40.73896258]
[1738529485068,2.1738,203.21,203.09,40.73896258]
[1738529485480,4.16,203.28,203.09,40.73896258]
[1738529485770,0.03164204,203.17,203.13,0.03650231]
[1738529486161,4.3397,203.27,203.09,40.73896258]
[1738529486363,0.03325765,203.17,203.13,0.03533705]
[1738529486563,40.73896258,203.25,203.04,40.73896258]
[1738529486766,0.03417622,203.17,203.13,0.03451926]
[1738529486969,4.9239,203.14,203.13,0.03451926]
[1738529487171,0.03417622,203.17,203.13,0.03451926]
[1738529487572,0.03417622,203.17,203.16,4.9234]
[1738529488170,2.1702,203.33,203.16,40.73896258]
[1738529488365,40.73896258,203.4,203.2,40.73896258]
[1738529488572,4.9195,203.33,203.24,40.73896258]
[1738529488872,2.0937,203.39,203.24,40.73896258]
[1738529489275,0.03760709,203.33,203.28,0.0339623]
[1738529489677,4.9203,203.29,203.28,0.0339623]
[1738529490073,40.73896258,203.32,203.17,2.1402]
[1738529490274,40.73896258,203.32,203.12,40.73896258]
[1738529490977,40.73896258,203.32,203.13,4.9241]
[1738529491174,4.9223,203.21,203.13,4.9241]
[1738529491374,0.03256759,203.25,203.2,0.03484781]
[1738529491574,42.93086258,203.28,203.12,40.73896258]
[1738529491777,0.03569342,203.25,203.2,0.03415743]
[1738529491972,4.4688,203.28,203.2,0.03415743]
[1738529492178,0.03539532,203.25,203.2,0.03415743]
[1738529492777,4.9216,203.24,203.2,0.03415743]
[1738529493080,0.03539532,203.25,203.2,0.03415743]
[1738529493782,4.9222,203.22,203.2,0.03415743]
[1738529495580,0.03539532,203.25,203.2,0.03415743]
[1738529495780,4.9222,203.21,203.2,0.03415743]
[1738529496585,4.9244,203.12,203.09,2.2717]
[1738529496781,4.16,203.23,203.09,2.2717]
[1738529497086,4.9242,203.13,203.09,2.2717]
[1738529497383,4.16,203.23,203.09,2.2717]
[1738529497777,0.03711975,203.18,203.14,0.03665161]
[1738529497999,0.03711975,203.18,203.16,40.73896258]
[1738529498285,0.03786329,203.19,203.16,40.73896258]
[1738529498583,2.2501,203.3,203.16,40.73896258]
[1738529498885,0.03369483,203.2,203.18,4.9229]
[1738529499183,2.2501,203.3,203.21,0.03718082]
[1738529499786,0.03500276,203.28,203.21,0.03718082]
[1738529499984,40.77396534,203.28,203.21,0.03718082]
[1738529500180,40.77396534,203.28,203.1,2.2138]
[1738529500582,4.9235,203.16,203.1,2.2138]
[1738529500783,4.9235,203.16,203.11,4.9246]
[1738529501382,0.03710579,203.16,203.11,0.03609562]
[1738529502587,40.77606837,203.16,202.97,40.73896258]
[1738529502989,42.85586258,203.2,202.97,40.73896258]
[1738529503188,4.9241,203.14,203.02,4.9267]
[1738529503391,42.85586258,203.2,203.02,4.9267]
[1738529503691,0.03134159,203.13,203.09,0.0316169]
[1738529504286,4.9221,203.22,203.15,4.9236]
[1738529504492,6.70718013,203.33,203.09,40.77057948]
[1738529504493,8.6651,203.31,203.13,40.73896258]